Cogmind - Beta 12 @@@ ROGUE MODE // 2023.06.04 @ 20:36:02 // Winter2022/Polymind Player: the cat Result: Destroyed by Y-64 Sentinel with Wave Gun Performance ------------- Evolutions (3) 1500 Regions Visited (12) 2400 Robots Destroyed (65) 325 Value Destroyed (1770) 1770 Prototype IDs (217) 4340 Alien Tech Used (0) 0 Bonus (10851) 10851 TOTAL SCORE: 20676 Bonus ------- Polymind Skill 7248 Follower Combat Kills 45 Aligned with FarCom 300 Met Data Miner 300 Used Data Conduit 3000 Friendly Fire -42 Cogmind --------- Core Integrity 0/700 Matter 0/0 Energy 100/100 System Corruption 0% Temperature Warm (144) Movement Walking (120) Location -6/Proximity Caves Parts ------- > --- POWER (1) -------- Light Angular Momentum Engine > --- PROPULSION (2) --- Carbon-fiber Leg > --- UTILITY (1) ------ Advanced Heat Sink > --- WEAPON (1) ------- Heavy Laser > --- INVENTORY (1) ---- (None) Peak State ------------ > --- POWER ------------ Heavy Deuterium Engine > --- PROPULSION ------- Combat Antigrav System > --- UTILITY ---------- Advanced Launcher Guidance Computer Improved Target Analyzer Experimental Core Analyzer Improved Armor Integrity Analyzer EX Chip 1 EX Chip 1 EX Chip 1 EX Chip 1 EX Chip 1 EX Chip 1 EX Chip 1 EX Chip 1 EX Chip 1 EX Chip 1 EX Chip 2 EX Chip 2 EX Chip 2 EX Chip 2 EX Chip 2 EX Chip 2 EX Chip 2 EX Chip 2 > --- WEAPON ----------- AWS/EX-DEC > --- INVENTORY -------- Deploy-a-Sentry [Rating: 99] Favorites ----------- Power Improved Ion Engine Engine Improved Ion Engine Power Core Neutrino Core Propulsion Light Treads Treads Light Treads Leg Aluminum Leg Wheel Compact Wheel Hover Unit Combat Antigrav System Utility EX Chip 1 Device Heat Sink Storage Small Storage Unit Processor Advanced Launcher Guidance Computer Hackware EX Chip 1 Protection Light Armor Plating Weapon Beam Rifle Energy Gun Beam Rifle Ballistic Gun Heavy Assault Rifle Special Melee Weapon Datajack Build | -11 -10 -10 -9 -9 -9 -8 -8 -7 -7 -7 -7 -6 ------- Run | Jun Mat Min Mat Min Exi Min Mat Fac Low Low Dat Pro Slots Evolved . | . . . . . . . . . . . . . Power . | . . . . . . . . . . . . . Propulsion . | . . . . . . . . . . . . . Utility . | . . . . . . . . . . . . . Weapon . | . . . . . . . . . . . . . Parts Attached . | . . . . . . . . . . . . . Power . | . . . . . . . . . . . . . Engine . | . . . . . . . . . . . . . Core . | . . . . . . . . . . . . . Reactor . | . . . . . . . . . . . . . Propulsion . | . . . . . . . . . . . . . Treads . | . . . . . . . . . . . . . Leg . | . . . . . . . . . . . . . Wheel . | . . . . . . . . . . . . . Hover . | . . . . . . . . . . . . . Flight . | . . . . . . . . . . . . . Utility . | . . . . . . . . . . . . . Device . | . . . . . . . . . . . . . Storage . | . . . . . . . . . . . . . Processor . | . . . . . . . . . . . . . Hackware . | . . . . . . . . . . . . . Protection . | . . . . . . . . . . . . . Artifact . | . . . . . . . . . . . . . Weapon . | . . . . . . . . . . . . . Energy Gun . | . . . . . . . . . . . . . Energy Cannon . | . . . . . . . . . . . . . Ballistic Gun . | . . . . . . . . . . . . . Ballistic Cannon . | . . . . . . . . . . . . . Launcher . | . . . . . . . . . . . . . Special Weapon . | . . . . . . . . . . . . . Impact Weapon . | . . . . . . . . . . . . . Slashing Weapon . | . . . . . . . . . . . . . Piercing Weapon . | . . . . . . . . . . . . . Special Melee Weapon . | . . . . . . . . . . . . . Unidentified Prototypes . | . . . . . . . . . . . . . Parts Lost 18 | . 1 1 6 . . 2 . 2 1 . . 5 Power 2 | . . . 1 . . . . . . . . 1 Propulsion 4 | . . 1 1 . . . . . . . . 2 Utility 8 | . . . 2 . . 2 . 1 1 . . 2 Weapon 4 | . 1 . 2 . . . . 1 . . . . Highest Loss Streak 5 | . 1 1 5 . . 1 . 1 1 . . 5 To Critical Strikes . | . . . . . . . . . . . . . Average Slot Usage (%) 86 | . 96 82 95 100 18 93 88 87 76 76 76 20 Engine 11 | . 19 20 12 12 . 3 3 3 3 3 3 1 Treads 8 | . . . 21 25 . . . . . . . 2 Leg 6 | . 23 22 . . . . . . . . . 2 Wheel 4 | . 14 . 1 . . . . . . . . . Hover 1 | . . . 1 . . 3 3 3 3 3 3 . Device 14 | . 19 20 21 25 . . . . . . . 4 Storage 2 | . 7 . . . . . . . . . . . Processor 3 | . . . . . 2 15 15 15 15 15 15 . Hackware 14 | . . . . . 13 66 61 60 53 53 53 . Protection 4 | . . . 11 12 . . . . . . . 1 Energy Gun 8 | . 11 20 12 12 . 3 3 2 . . . 3 Ballistic Gun 4 | . . . 10 12 . . . . . . . 1 Naked Turns 406 | . 44 1 2 1 165 . . . . . 3 190 Heaviest Build 33 | . 9 7 18 18 21 21 21 21 11 11 11 33 Greatest Support 46 | 3 32 20 40 40 21 21 21 21 21 21 21 46 Greatest Overweight (x) 1 | . . . 1 . . . . . . . . . Average Overweight (x) . | . . . . . . . . . . . . . Largest Inventory Capacity 4 | . 4 1 1 1 1 1 1 1 1 1 1 1 Average Capacity 1 | . 1 . . . . 1 1 1 1 1 . . Most Carried 4 | . 4 1 . 1 1 1 1 1 1 . . . Average Carried . | . . . . . . 1 1 1 . . . . Final Capacity 1 | . 1 1 1 . 1 1 1 1 1 1 . 1 Final Carried 1 | . 1 . . . 1 1 1 1 . . . . Class Distribution -------------------- 38% | Sentry 25% | Tinkerer 17% | Grunt 9% | Recycler 7% | Cogmind Dominant Class ---------------- Grunt | -10/Materials Grunt | -10/Mines Sentry | -9/Materials Sentry | -9/Mines Cogmind | -9/Exiles Tinkerer | -8/Mines Tinkerer | -8/Materials Tinkerer | -7/Factory Tinkerer | -7/Lower Caves Tinkerer | -7/Lower Caves Tinkerer | -7/Data Miner Cogmind | -6/Proximity Caves Resources | -11 -10 -10 -9 -9 -9 -8 -8 -7 -7 -7 -7 -6 ----------- Run | Jun Mat Min Mat Min Exi Min Mat Fac Low Low Dat Pro Matter Collected 159 | . . . 159 . . . . . . . . . Remotely . | . . . . . . . . . . . . . Salvage Created 1830 | . 327 144 563 . . . 297 273 . . . 226 Parts 132 | . 37 4 44 . . . 16 22 . . . 9 Haulers Intercepted 2 | . 1 . 1 . . . . . . . . . Recyclers Shooed 2 | . . . 1 . . . . 1 . . . . Parts Field Recycled . | . . . . . . . . . . . . . Retrieved Matter . | . . . . . . . . . . . . . Parts Self-Destructed 10 | . . . . . . . . . 4 . . 6 Prevented . | . . . . . . . . . . . . . Kills | -11 -10 -10 -9 -9 -9 -8 -8 -7 -7 -7 -7 -6 ------- Run | Jun Mat Min Mat Min Exi Min Mat Fac Low Low Dat Pro Combat Hostiles Destroyed 50 | . 12 2 19 . . . 6 4 . . . 7 Guns 49 | . 12 2 19 . . . 6 3 . . . 7 Classes Destroyed 14 | . 6 . 3 . . . 1 3 . . . 1 Worker 3 | . 2 . 1 . . . . . . . . . Builder 1 | . 1 . . . . . . . . . . . Hauler 2 | . 1 . 1 . . . . . . . . . Operator 1 | . . . . . . . . 1 . . . . Watcher 8 | . 2 . 3 . . . 1 2 . . . . Swarmer 18 | . 6 . 7 . . . 3 . . . . 2 Grunt 21 | . 6 2 7 . . . 2 2 . . . 2 Brawler 4 | . . . 2 . . . . . . . . 2 Duelist 2 | . . . 1 . . . . . . . . 1 Sentry 2 | . . . 2 . . . . . . . . . Hunter 1 | . . . . . . . 1 . . . . . Programmer 1 | . . . . . . . . 1 . . . . Heavy 1 | . . . . . . . . 1 . . . . Tinkerer 1 | . . . . . . . . . . . . 1 Best Kill Streak 7 | . 3 2 5 . . . 4 4 . . . 7 Combat Bots Only 7 | . 3 2 4 . . . 3 2 . . . 7 Max Kills in Single Turn 2 | . 1 1 2 . . . 1 1 . . . 1 Gunslinging 1 | . . . 1 . . . . . . . . . Exploded . | . . . . . . . . . . . . . Melee . | . . . . . . . . . . . . . Uniques/NPCs Destroyed . | . . . . . . . . . . . . . Combat | -11 -10 -10 -9 -9 -9 -8 -8 -7 -7 -7 -7 -6 -------- Run | Jun Mat Min Mat Min Exi Min Mat Fac Low Low Dat Pro Damage Taken 3742 | . 464 176 788 . . 53 192 377 13 . 278 1401 Core 1178 | . 135 46 235 . . 16 22 144 8 . 278 294 Absorbed by Shields . | . . . . . . . . . . . . . Core Remaining (%) 65 | 100 . 27 . . . 37 96 . . . . . Volleys Fired 178 | . 77 14 64 . . . . . . . . 23 Largest 2 | . 1 1 2 . . . . . . . . 2 Hottest 114 | . 40 40 86 . . . . . . . . 114 Shots Fired 304 | . 77 14 124 . . 4 18 35 . . . 32 Gun 304 | . 77 14 124 . . 4 18 35 . . . 32 Cannon . | . . . . . . . . . . . . . Launcher . | . . . . . . . . . . . . . Special . | . . . . . . . . . . . . . Kinetic 54 | . . . 45 . . . . . . . . 9 Thermal 193 | . 77 14 79 . . . . . . . . 23 Explosive . | . . . . . . . . . . . . . Electromagnetic 57 | . . . . . . 4 18 35 . . . . Robot Hit Streak 22 | . 8 3 17 . . 5 6 16 . . . 22 Robot Miss Streak 6 | . 4 1 4 . . 2 6 2 . . . 2 Penetration Max . | . . . . . . . . . . . . . Secondary Targets 5 | . . . 2 . . . . . . . . 3 Max Gunslinging Chain 1 | . . . 1 . . . . . . . . 1 Autonomous 57 | . . . . . . 4 18 35 . . . . Shots Hit Robots 212 | . 47 10 79 . . 4 13 31 . . . 28 Core Hits 106 | . 27 5 32 . . . 10 20 . . . 12 Critical Kills 1 | . . . . . . . . . . . . 1 Critical Parts Destroyed . | . . . . . . . . . . . . . Critical Strikes 19 | . . . 6 . . . 3 8 . . . 2 Burn 7 | . . . 6 . . . . . . . . 1 Destroy 1 | . . . . . . . . . . . . 1 Corrupt 11 | . . . . . . . 3 8 . . . . Melee Attacks 1 | . 1 . . . . . . . . . . . Impact . | . . . . . . . . . . . . . Slashing . | . . . . . . . . . . . . . Piercing . | . . . . . . . . . . . . . Sneak Attacks 1 | . 1 . . . . . . . . . . . Combat Hostiles . | . . . . . . . . . . . . . Follow-up Attacks . | . . . . . . . . . . . . . Damage Inflicted 3602 | . 563 114 1233 14 . 42 397 539 3 . . 697 Guns 3578 | . 563 114 1233 . . 35 397 539 . . . 697 Cannons . | . . . . . . . . . . . . . Explosions . | . . . . . . . . . . . . . Melee . | . . . . . . . . . . . . . Ramming 24 | . . . . 14 . 7 . . 3 . . . Kinetic 680 | . . . 469 . . . . . . . . 211 Thermal 1927 | . 563 114 764 . . . . . . . . 486 Explosive . | . . . . . . . . . . . . . Electromagnetic 971 | . . . . . . 35 397 539 . . . . Impact . | . . . . . . . . . . . . . Slashing . | . . . . . . . . . . . . . Piercing . | . . . . . . . . . . . . . Highest Corruption . | . . . . . . . . . . . . . Average Corruption . | . . . . . . . . . . . . . Corruption Purged . | . . . . . . . . . . . . . Corruption Blocked . | . . . . . . . . . . . . . Overload Shots . | . . . . . . . . . . . . . Overflow Damage . | . . . . . . . . . . . . . Projectiles . | . . . . . . . . . . . . . Explosions . | . . . . . . . . . . . . . Melee . | . . . . . . . . . . . . . Knockbacks . | . . . . . . . . . . . . . Impact . | . . . . . . . . . . . . . Kinetic . | . . . . . . . . . . . . . Secondary . | . . . . . . . . . . . . . Self-Inflicted Damage 4 | . . . . . . 3 . . 1 . . . Shots . | . . . . . . . . . . . . . Rammed 7 | . . . . 4 . 1 . . 1 . 1 . Targets Rammed 7 | . . . . 4 . 1 . . 1 . 1 . Kicked . | . . . . . . . . . . . . . Crushed . | . . . . . . . . . . . . . Highest Temperature 655 | . 42 96 655 . . 16 4 1 . . . 474 Average Temperature 152 | . 15 62 228 . . 6 3 1 . . . 140 Received Heat Transfer 888 | . 123 96 174 . . 27 18 18 . . . 432 Effects 26 | . . . 26 . . . . . . . . . Shutdowns 6 | . . . 6 . . . . . . . . . Energy Bleed 1 | . . . 1 . . . . . . . . . Interference 1 | . . . 1 . . . . . . . . . Matter Decay 2 | . . . 2 . . . . . . . . . Short Circuit 2 | . . . 2 . . . . . . . . . Damage (minor) 2 | . . . 2 . . . . . . . . . Damage (major) 11 | . . . 11 . . . . . . . . . Damage (core) 1 | . . . 1 . . . . . . . . . Siege Activations . | . . . . . . . . . . . . . Robots Corrupted 1 | . . . . . . . . 1 . . . . Combat Hostiles 1 | . . . . . . . . 1 . . . . Parts Fried 8 | . . . . . . . . 8 . . . . Impact Corruptions . | . . . . . . . . . . . . . Robots Melted . | . . . . . . . . . . . . . Combat Hostiles . | . . . . . . . . . . . . . Parts Melted 7 | . 1 1 4 . . . . . . . . 1 Heat Transferred 4805 | . 1225 250 2479 . . . . . . . . 851 Parts Sabotaged . | . . . . . . . . . . . . . Parts Stolen . | . . . . . . . . . . . . . Parts Stripped . | . . . . . . . . . . . . . Power Chain Reactions . | . . . . . . . . . . . . . Missiles Intercepted . | . . . . . . . . . . . . . Alert | -11 -10 -10 -9 -9 -9 -8 -8 -7 -7 -7 -7 -6 ------- Run | Jun Mat Min Mat Min Exi Min Mat Fac Low Low Dat Pro Peak Influence 319 | . 252 47 319 91 . 45 230 211 . . . . Initial 104 | . . 7 23 91 . . 13 104 . . . . Average 89 | . 101 37 83 59 . 19 114 140 . . . . Maximum Alert Level 1 | . 1 . 1 . . . 1 1 . . . . Low Security (%) 89 | . 87 100 90 100 . 100 71 82 . . . . Level 1 10 | . 12 . 9 . . . 28 17 . . . . Level 2 . | . . . . . . . . . . . . . Level 3 . | . . . . . . . . . . . . . Level 4 . | . . . . . . . . . . . . . Level 5 . | . . . . . . . . . . . . . High Security . | . . . . . . . . . . . . . Max Security . | . . . . . . . . . . . . . Squads Dispatched 7 | . 3 . . . . . 1 3 . . . . Investigation 2 | . 2 . . . . . . . . . . . Extermination 1 | . . . . . . . . 1 . . . . Reinforcement 4 | . 1 . . . . . 1 2 . . . . Assault . | . . . . . . . . . . . . . Garrison . | . . . . . . . . . . . . . Intercept . | . . . . . . . . . . . . . Searches Triggered . | . . . . . . . . . . . . . Construction Impeded . | . . . . . . . . . . . . . Haulers Reinforced . | . . . . . . . . . . . . . Active Scanning Responses . | . . . . . . . . . . . . . Cargo Convoy Interrupts . | . . . . . . . . . . . . . Stealth | -11 -10 -10 -9 -9 -9 -8 -8 -7 -7 -7 -7 -6 --------- Run | Jun Mat Min Mat Min Exi Min Mat Fac Low Low Dat Pro Distress Signals 2 | . 1 . 1 . . . . . . . . . Communications Jammed . | . . . . . . . . . . . . . Distress Signals . | . . . . . . . . . . . . . Times Spotted 109 | . 37 2 22 . . 5 11 10 1 5 4 12 Peak Tracking Total 8 | . 5 2 3 . . 3 6 3 1 3 4 8 Tactical Retreats 11 | . 1 . . . . 3 2 1 . 4 . . Traps | -11 -10 -10 -9 -9 -9 -8 -8 -7 -7 -7 -7 -6 ------- Run | Jun Mat Min Mat Min Exi Min Mat Fac Low Low Dat Pro Traps Triggered 4 | . . . 3 . . . 1 . . . . . Indirectly . | . . . . . . . . . . . . . Trap Hack Attempts . | . . . . . . . . . . . . . Triggered . | . . . . . . . . . . . . . Disarmed . | . . . . . . . . . . . . . Reprogrammed . | . . . . . . . . . . . . . Reused . | . . . . . . . . . . . . . Traps Extracted . | . . . . . . . . . . . . . Installed . | . . . . . . . . . . . . . Triggered . | . . . . . . . . . . . . . Machines | -11 -10 -10 -9 -9 -9 -8 -8 -7 -7 -7 -7 -6 ---------- Run | Jun Mat Min Mat Min Exi Min Mat Fac Low Low Dat Pro Machines Disabled 1 | . . . 1 . . . . . . . . . Max in Single Turn 1 | . . . 1 . . . . . . . . . Garrison Access 1 | . . . . . . . . 1 . . . . Machines Repaired . | . . . . . . . . . . . . . Machines Sabotaged . | . . . . . . . . . . . . . Overloaded Fab Kills . | . . . . . . . . . . . . . Hacking | -11 -10 -10 -9 -9 -9 -8 -8 -7 -7 -7 -7 -6 --------- Run | Jun Mat Min Mat Min Exi Min Mat Fac Low Low Dat Pro Machines Accessed 22 | . 5 . 4 . 1 . 1 6 . 2 3 . Terminals 12 | . 5 . 2 . . . 1 4 . . . . Fabricators 1 | . . . . . . . . 1 . . . . Repair Stations 2 | . . . 2 . . . . . . . . . Recycling Units . | . . . . . . . . . . . . . Scanalyzers . | . . . . . . . . . . . . . Garrison Access 1 | . . . . . . . . 1 . . . . Total Hacks 93 | . 15 . 9 . 4 . 5 26 . 9 25 . Successful 76 | . 10 . 5 . 4 . 3 20 . 9 25 . Failed 17 | . 5 . 4 . . . 2 6 . . . . Catastrophic 5 | . 2 . 1 . . . . 2 . . . . Database Lockouts . | . . . . . . . . . . . . . Manual 41 | . 10 . 5 . 1 . 2 23 . . . . Terminals 47 | . 15 . 6 . . . 5 21 . . . . Fabricators 4 | . . . . . . . . 4 . . . . Repair Stations 3 | . . . 3 . . . . . . . . . Recycling Units . | . . . . . . . . . . . . . Scanalyzers . | . . . . . . . . . . . . . Garrison Access 1 | . . . . . . . . 1 . . . . Terminal Hacks 62 | . 8 . 1 . 4 . 3 12 . 9 25 . Record 20 | . 2 . . . 4 . . . . 8 6 . Part Schematic 12 | . . . . . . . . . . . 12 . Robot Schematic 6 | . . . . . . . 1 1 . . 4 . Robot Analysis 4 | . . . . . . . . 4 . . . . Prototype ID Bank 3 | . . . . . . . . . . . 3 . Open Door 1 | . . . . . . . . . . 1 . . Open DSF 1 | . . . . . . . . 1 . . . . Level Access Points 2 | . . . . . . . 1 1 . . . . Branch Access Points 3 | . 1 . . . . . 1 1 . . . . Machine Index 1 | . . . . . . . . 1 . . . . Alert Level 1 | . . . . . . . . 1 . . . . Unreport Threat 3 | . 2 . 1 . . . . . . . . . Locate Traps 3 | . 2 . . . . . . 1 . . . . Hauler Manifests 1 | . 1 . . . . . . . . . . . Zone Layout 1 | . . . . . . . . 1 . . . . Fabricator Hacks 2 | . . . . . . . . 2 . . . . Network Status 1 | . . . . . . . . 1 . . . . Load Schematic 1 | . . . . . . . . 1 . . . . Repair Station Hacks 2 | . . . 2 . . . . . . . . . Refit 2 | . . . 2 . . . . . . . . . Recycling Unit Hacks . | . . . . . . . . . . . . . Scanalyzer . | . . . . . . . . . . . . . Garrison Access Hacks 1 | . . . . . . . . 1 . . . . Seal Access 1 | . . . . . . . . 1 . . . . Unauthorized Hacks 9 | . 2 . 2 . . . . 5 . . . . Terminals 7 | . 2 . 2 . . . . 3 . . . . Track 4 | . 1 . 1 . . . . 2 . . . . Botnet 3 | . 1 . 1 . . . . 1 . . . . Fabricators 2 | . . . . . . . . 2 . . . . Liberate 1 | . . . . . . . . 1 . . . . Haulers 1 | . . . . . . . . 1 . . . . Repair Stations . | . . . . . . . . . . . . . Recycling Units . | . . . . . . . . . . . . . Scanalyzers . | . . . . . . . . . . . . . Garrison Access . | . . . . . . . . . . . . . Data Cores Recovered 1 | . . . . . . . . 1 . . . . Used 1 | . . . . . . . . 1 . . . . Hacking Detections 12 | . 4 . 4 . . . 1 3 . . . . Full Trace Events 3 | . 3 . . . . . . . . . . . Feedback Events . | . . . . . . . . . . . . . Feedback Blocked . | . . . . . . . . . . . . . Robot Schematics Acquired 6 | . . . . . . . 1 1 . . 4 . Robots Built . | . . . . . . . . . . . . . Authchips . | . . . . . . . . . . . . . Time . | . . . . . . . . . . . . . Total Robot Build Rating . | . . . . . . . . . . . . . Part Schematics Acquired 12 | . . . . . . . . . . . 12 . Parts Built . | . . . . . . . . . . . . . Authchips . | . . . . . . . . . . . . . Time . | . . . . . . . . . . . . . Total Part Build Rating . | . . . . . . . . . . . . . Parts Repaired . | . . . . . . . . . . . . . Time . | . . . . . . . . . . . . . Parts Recycled . | . . . . . . . . . . . . . Recycled Matter . | . . . . . . . . . . . . . Retrieved Matter . | . . . . . . . . . . . . . Retrieved Components . | . . . . . . . . . . . . . Parts Scanalyzed . | . . . . . . . . . . . . . Part Schematics Acquired . | . . . . . . . . . . . . . Parts Damaged . | . . . . . . . . . . . . . Bothacking | -11 -10 -10 -9 -9 -9 -8 -8 -7 -7 -7 -7 -6 ------------ Run | Jun Mat Min Mat Min Exi Min Mat Fac Low Low Dat Pro Used RIF Installer . | . . . . . . . . . . . . . Robots Hacked 10 | . 6 . 2 . . . . . . . . 2 Non-combat 4 | . 4 . . . . . . . . . . . Combat 6 | . 2 . 2 . . . . . . . . 2 Robot Hacks Applied 12 | . 8 . 2 . . . . . . . . 2 parse_system 1 | . 1 . . . . . . . . . . . find_recycling 2 | . 2 . . . . . . . . . . . find_terminals 1 | . 1 . . . . . . . . . . . map_route 1 | . 1 . . . . . . . . . . . mark_security 1 | . 1 . . . . . . . . . . . find_shortcuts 6 | . 2 . 2 . . . . . . . . 2 Relay Couplers Released . | . . . . . . . . . . . . . Fabnet Peak Effective % . | . . . . . . . . . . . . . Robots Rewired . | . . . . . . . . . . . . . Allies Hacked . | . . . . . . . . . . . . . Hacks Repelled . | . . . . . . . . . . . . . Allies | -11 -10 -10 -9 -9 -9 -8 -8 -7 -7 -7 -7 -6 -------- Run | Jun Mat Min Mat Min Exi Min Mat Fac Low Low Dat Pro Total Allies . | . . . . . . . . . . . . . Largest Group . | . . . . . . . . . . . . . Highest-Rated Group . | . . . . . . . . . . . . . Highest-Rated Ally . | . . . . . . . . . . . . . Total Orders . | . . . . . . . . . . . . . Ally Attacks 1 | . . . . . . . . . 1 . . . Total Damage 52 | . . . . . . . . . 52 . . . Kills 1 | . . . . . . . . . 1 . . . Allies Corrupted . | . . . . . . . . . . . . . Allies Melted . | . . . . . . . . . . . . . Turrets Deployed 1 | . . . . . . . . . 1 . . . Intel | -11 -10 -10 -9 -9 -9 -8 -8 -7 -7 -7 -7 -6 ------- Run | Jun Mat Min Mat Min Exi Min Mat Fac Low Low Dat Pro Robot Analysis Total 141 | . 4 1 1 . . . . 4 . . 131 . Derelict Logs Recovered 7 | . . . . 2 . . . . 1 2 . 2 Drone Launches . | . . . . . . . . . . . . . Drone Recoveries . | . . . . . . . . . . . . . Exploration | -11 -10 -10 -9 -9 -9 -8 -8 -7 -7 -7 -7 -6 ------------- Run | Jun Mat Min Mat Min Exi Min Mat Fac Low Low Dat Pro Turns Passed 5751 | . 1542 92 1626 615 205 177 116 487 316 249 81 245 Spaces Moved 4437 | 1 1063 57 479 379 379 203 145 605 394 312 103 317 Core 755 | 1 68 2 33 2 328 . . . . . 7 314 Treads 655 | . . . 276 377 . . . . . . . 2 Legs 528 | . 478 49 . . . . . . . . . 1 Wheels 518 | . 442 6 70 . . . . . . . . . Hover 1981 | . 75 . 100 . 51 203 145 605 394 312 96 . Flight . | . . . . . . . . . . . . . Fastest Speed 50 | 50 50 50 50 50 50 80 80 80 80 80 50 50 Average Speed 93 | 50 102 113 127 159 54 80 80 80 80 80 77 50 Slowest Speed 180 | 50 120 120 180 160 80 80 80 80 80 80 80 160 Overloaded Moves . | . . . . . . . . . . . . . Propulsion Burnouts . | . . . . . . . . . . . . . Robots Hopped . | . . . . . . . . . . . . . Cave-ins Triggered . | . . . . . . . . . . . . . Exploration Rate (%) 52 | 2 95 13 50 88 88 63 21 21 55 57 78 51 Regions Visited 12 Branch Regions 8 Pre-discovered Areas 27 | . . . . 1 1 . . . . . 25 . Known Exits Taken 4 | . 1 . . . . . 1 1 1 . . . Unknown Exits Taken 8 | 1 . 1 1 1 1 1 . . . 1 1 . Scrap Searched 7 | . . . . 2 . . . . 2 . . 3 Spaces Dug . | . . . . . . . . . . . . . Terrain Destroyed . | . . . . . . . . . . . . . Melee . | . . . . . . . . . . . . . Projectile . | . . . . . . . . . . . . . AOE . | . . . . . . . . . . . . . Terrain Rammed . | . . . . . . . . . . . . . Walls Destroyed . | . . . . . . . . . . . . . Machines Disabled . | . . . . . . . . . . . . . Actions | -11 -10 -10 -9 -9 -9 -8 -8 -7 -7 -7 -7 -6 --------- Run | Jun Mat Min Mat Min Exi Min Mat Fac Low Low Dat Pro Total 5789 | . 1437 70 1369 386 378 217 144 607 395 311 103 372 Wait 1151 | . 272 . 827 3 . 14 . 3 . . . 32 Move 4426 | . 1062 56 478 378 378 203 144 604 393 311 102 317 Hop . | . . . . . . . . . . . . . Pick Up 13 | . 12 . . 1 . . . . . . . . Fast Attach . | . . . . . . . . . . . . . Attach . | . . . . . . . . . . . . . Detach . | . . . . . . . . . . . . . Swap . | . . . . . . . . . . . . . Drop 3 | . 2 . . . . . . . 1 . . . Fire 178 | . 77 14 64 . . . . . . . . 23 Melee 1 | . 1 . . . . . . . . . . . Ram 2 | . . . . . . . . . 1 . 1 . Kick . | . . . . . . . . . . . . . Crush 4 | . . . . 4 . . . . . . . . Escape Stasis . | . . . . . . . . . . . . . Rewire 2 | . 2 . . . . . . . . . . . Trap . | . . . . . . . . . . . . . Miscellaneous 9 | . 9 . . . . . . . . . . . Route ------- -11/Junkyard -10/Materials (discovered 5 exits: *Mat x3 / *Min x2) -10/Mines -9/Materials (discovered 4 exits: *Mat / [*Min] / [*Sto x2]) -9/Mines (discovered 3 exits: *Mat x2 / *Exi) -9/Exiles -8/Mines -8/Materials (discovered 3 exits: *Fac x3) -7/Factory (discovered 6 exits: Fac x4 / *Low x2) -7/Lower Caves -7/Lower Caves -7/Data Miner -6/Proximity Caves History --------- Turn | Location | Event 1 | -11/Junkyard | Discovered new exit (range 0) 1 | -11/Junkyard | Entered Materials 38 | -10/Materials | Identified exit to Mines 102 | -10/Materials | Discovered new exit (range 13) 497 | -10/Materials | Discovered new exit (range 3) 744 | -10/Materials | Discovered new exit (range 4) 838 | -10/Materials | Core integrity fell below 50% 1543 | -10/Materials | Entered Mines 1583 | -10/Mines | Discovered new exit (range 6) 1635 | -10/Mines | Entered Materials 1673 | -9/Materials | Discovered new exit (range 13) 2375 | -9/Materials | Discovered new exit (range 9) 2528 | -9/Materials | Lost 5 parts (1p1n1u2w) 2912 | -9/Materials | Core integrity fell below 50% 2952 | -9/Materials | Discovered new exit (range 16) 2992 | -9/Materials | Discovered new exit (range 16) 3261 | -9/Materials | Entered Mines 3273 | -9/Mines | Discovered new exit (range 5) 3278 | -9/Mines | Learned location of Storage (-9) 3335 | -9/Mines | Learned location of 1 exit from Lower Caves 3391 | -9/Mines | Learned Materials terminal intel 3586 | -9/Mines | Discovered new exit (range 5) 3591 | -9/Mines | Received a Rocket Launcher from a helpful Derelict 3707 | -9/Mines | A weapon hastily lodged in a ceiling crevice suddenly fell to the ground 3865 | -9/Mines | Deemed a non-threat by the Exiles lab entrance 3867 | -9/Mines | Discovered new exit (range 5) 3876 | -9/Mines | Entered Exiles 3888 | -9/Exiles | Met 8R-AWN 3897 | -9/Exiles | Met EX-HEX 3914 | -9/Exiles | Met EX-BIN 3921 | -9/Exiles | Aligned with FarCom system 3921 | -9/Exiles | Given EX-Vault access code 3933 | -9/Exiles | Opened EX-Vault 3942 | -9/Exiles | Warned to stay clear of 0b10 Research branches 3956 | -9/Exiles | Met EX-DEC 3959 | -9/Exiles | Learned location of Zion (-6) 3983 | -9/Exiles | Visited The Gauntlet 4041 | -9/Exiles | Took control of EX-DEC (ally) 4073 | -9/Exiles | Discovered new exit (range 10) 4081 | -9/Exiles | Left Exiles lab with Deploy-a-Sentry 4081 | -9/Exiles | Entered Mines 4230 | -8/Mines | Discovered new exit (range 15) 4258 | -8/Mines | Entered Materials 4259 | -8/Materials | Loaded intel: 12 terminal locations 4290 | -8/Materials | Identified exit to Factory 4374 | -8/Materials | Entered Factory 4395 | -7/Factory | Identified exit to Lower Caves 4555 | -7/Factory | Identified exit to Factory 4861 | -7/Factory | Entered Lower Caves 4862 | -7/Lower Caves | Identified exit to Lower Caves 4929 | -7/Lower Caves | DAS Turret deployed 5083 | -7/Lower Caves | Encountered a Warlord checkpoint 5093 | -7/Lower Caves | Learned Factory emergency access door positions 5177 | -7/Lower Caves | Entered another Lower Caves area 5182 | -7/Lower Caves | Learned location of 1 exit from Factory 5209 | -7/Lower Caves | Encountered a Warlord checkpoint 5236 | -7/Lower Caves | Learned Factory trap positions 5342 | -7/Lower Caves | Learned location of 1 exit from Research 5342 | -7/Lower Caves | Learned 8 Factory zone layouts 5342 | -7/Lower Caves | Learned Armory terminal intel 5342 | -7/Lower Caves | Learned Factory garrison access intel 5422 | -7/Lower Caves | Discovered new exit (range 3) 5426 | -7/Lower Caves | Entered Data Miner 5426 | -7/Data Miner | Discovered new exit (range 6) 5442 | -7/Data Miner | Met Data Miner 5461 | -7/Data Miner | Learned location of Section 7 (-3) 5461 | -7/Data Miner | Acquired the access code to Warlord's prototype stash 5480 | -7/Data Miner | Received God Mode back door access code from Data Miner 5487 | -7/Data Miner | Interfaced with the Data Conduit 5504 | -7/Data Miner | Core integrity fell below 50% 5507 | -7/Data Miner | Entered Proximity Caves 5516 | -6/Proximity Caves | Spotted B-75 Beast 5519 | -6/Proximity Caves | Learned location of 1 exit from Factory 5524 | -6/Proximity Caves | Learned 4 Factory zone layouts 5726 | -6/Proximity Caves | Received a Behemoth hack from an annoying Tinkerer 5733 | -6/Proximity Caves | Core integrity fell below 20% 5752 | -6/Proximity Caves | Destroyed by Y-64 Sentinel with Wave Gun Last Messages --------------- 05719_ Slug penetrates L-41 Fighter. 05720_ Lgt. Treads fries itself beyond repair. 05720_ KE Penetrator severed. 05722_ Lgt. Treads fries itself beyond repair. 05722_ Imp. Medium Armor Plating destroyed. 05724_ L-41 Fighter destroyed. 05726_ KL-2NR(c): "The hack is \\9HRF." 05726_ Acquired 33 Protomatter. 05730_ Neutrino Core destroyed. 05731_ Released control of Y-64 Sentinel. 05732_ Y-64 Sentinel reactivates. 05732_ Took control of G-50 Soldier. 05736_ KL-2NR(c): "Unaware adapt fast enough that it will probably only work once or twice, but once is all you need in a pinch, yeah?" 05741_ G-50 Soldier destroyed. 05744_ Carbon-fiber Leg destroyed. 05745_ KL-2NR(c) destroyed. 05746_ Hvy. Laser fries itself beyond repair. 05751_ Hvy. Laser melted. 05751_ G-50 Soldier destroyed. Map ----- +----------------------------------------------------+ | ?????????????????????????????????????????????????? | | ?????????????????????????????????????????????????? | | ?????????????????????????????????????????????????? | | ?????????????????????????????????????????????????? | | ?????????????????????????????????????????????????? | | ???????????????? ????????????????????????????????? | | ???????????????? ???????????????????????????????? | | ???????????????? ???????????????????????????????? | | ??????#????????? ??????????????????????????????? | | ??????# ???????? ???????????????????????????????? | | ??????? ??????? ???????????????????????????????? | | ???????? #####?? ????????????????????????????????? | | ?? #????? ### ????????????????????????????????? | | ?? #????? #????????????????????????????????? | | ?? ##???? ##???###?????????????????????????? | | ? ##???# #???# ?????????????????????????? | | ?? #???# ????# #??#####??????????????????? | | ?? #??## #????# #??Yg""#??????????????????? | | ??? #?## #???## #?? "#??????????????????? | | #?? ??# ##### #?? "#??????????????????? | | #### #?## #?? "#??????????????????? | | ## #?# ### ###?? #??????????????? | | # #?# [#% # ##?????????????? | | # ### ### %Y%= #?????????????? | | # ## ##?## ###%%% ?????????? | | ## ##???# #?##! g ## ?????????? | | ?# ##???# #??# ???????????? | | ?# #???# #??# ??????????? | | ?## #??# #??# ?????????? | | ??### ##?# #??# ####### ?????????? | | ????## #### #??## #????????????????? | | ?????# #?#### #???## #????????????????? | | ????# #????####????# ####????????????????? | | ???# #????????????## ##???????????????????? | | ???# ##?????????????? #????????????????????? | | ??? #??????????????? #????????????????????? | | ?? #??????????????? ????????????????????? | | ? ### #???????????????## ????????????????????? | | #??#####?????????????????##???????????????????? | | #??????????????????????????????????????????????? | | #???????????????????????????????????????????????? | | #????????????????????????????????????????????????? | | ?????????????????????????????????????????????????? | | ?????????????????????????????????????????????????? | | ?????????????????????????????????????????????????? | | ?????????????????????????????????????????????????? | | ?????????????????????????????????????????????????? | | ?????????????????????????????????????????????????? | | ?????????????????????????????????????????????????? | | ?????????????????????????????????????????????????? | +----------------------------------------------------+ Best States ------------- Heat Dissipation 51 Energy Generation 24 Energy Capacity 265 Matter Stores 100 Matter Capacity 100 Sight Range 18 Robot Scan Range 14 Terrain Scan Density 10 Armor Coverage 225 Resistance: EX 50 Resistance: EM 90 Resistance: I 25 Evasion (%) 55 Launcher Accuracy 40 Target Analysis 6 Core Analysis 8 Armor Integrity Analysis 40 Recoil Reduction 2 Offensive Hacking 70 Defensive Hacking 56 Item Schematics ----------------- Combat Drone Bay | -7/Data Miner | Free Lgt. Regenerative Plating | -7/Data Miner | Free Cld. Cesium-ion Thruster | -7/Data Miner | Free Exp. Targeting Computer | -7/Data Miner | Free Com. Ion Cannon | -7/Data Miner | Free Linear Gravjet | -7/Data Miner | Free Recoil Nullifier | -7/Data Miner | Free Lrn. Proton Cannon | -7/Data Miner | Free Adv. Terrain Scanner | -7/Data Miner | Free Imp. Weapon Cycler | -7/Data Miner | Free Imp. Recalibrator | -7/Data Miner | Free Micro-nuke Launcher | -7/Data Miner | Free Robot Schematics ------------------ Y-54 Guardian | -8/Materials | Hacked S-27 Virus | -7/Factory | Hacked G-47 Trooper | -7/Data Miner | Free E-15 Imp | -7/Data Miner | Free B-60 Warrior | -7/Data Miner | Free R-10 Processor | -7/Data Miner | Free Fabricated ------------ Nothing Alien Tech Used ----------------- None Achievements -------------- None Challenges ------------ None Polymind | -11 -10 -10 -9 -9 -9 -8 -8 -7 -7 -7 -7 -6 ---------- Run | Jun Mat Min Mat Min Exi Min Mat Fac Low Low Dat Pro Hosts 12 | . 6 1 2 . 1 . . . . . . 2 Combat Hostiles 6 | . 2 . 2 . . . . . . . . 2 Allies 1 | . . . . . 1 . . . . . . . Unique Host Classes 7 | . 4 1 1 . 1 . . . . . . . Average Host Suspicion 77 | . 90 98 69 67 . 68 89 99 94 29 10 100 Unsuspicious Activity 934 | . 68 11 839 . 16 . . . . . . . Returns to Shadow 2 | . 1 . 1 . . . . . . . . . Fuzzy Dispatches . | . . . . . . . . . . . . . Protomatter Created 294 | . 62 . 81 . . . 3 47 . . . 101 Used 260 | . 57 5 46 . 33 . . . . . . 119 Decayed 25 | . 11 . . . . . 3 . . . . 11 Highest Spend 74 | . 15 5 23 . 33 . . . . . . 74 Top 5 Hosts by Kills: Y-45 Defender (-9/Materials: 12) EX-DEC (-9/Exiles: 10) G-34 Mercenary (-10/Materials: 9) Y-45 Defender (-9/Materials: 7) G-34 Mercenary (-10/Materials: 5) Game ------ Seed DeliveryTacticalGravjet Manual? 0 Play Time 00:51:43 Cumulative 325.4 hours Start 2023.06.04 @ 18:16:05 End 2023.06.04 @ 20:36:02 Sessions 1 Manual Loads 0 Difficulty Rogue Special Mode Winter2022/Polymind Game No. 92 Rogue 75 Adventurer 17 Explorer 0 Win Type - Total 18 Types 8/1/7/1/0/0/1/0/0 Lore% 80 Gallery% 84 Achievement% 73 Wizard Run 0 Options --------- ASCII 0 Keyboard 0 Movement Arrows Keybinds 0 Fullscreen 1 Font 28/Dina Map View 72x54 Tactical HUD 1 Map Filters NONE Filters NONE Steam 1 RUN: c1f1b63b-15c0-4968-8a61-cf22d6f1ad7a